Cogmind - Beta 11 @@@ ROGUE MODE // 2022.04.07 @ 10:10:49 Player: Virvatuli Result: Destroyed by G-47 Trooper with Particle Gun Performance ------------- Evolutions (0) 0 Regions Visited (4) 800 Robots Destroyed (6) 30 Value Destroyed (212) 212 Prototype IDs (1) 20 Alien Tech Used (0) 0 Bonus (300) 300 TOTAL SCORE: 1362 Bonus ------- Aligned with FarCom 300 Cogmind --------- Core Integrity 0/250 Matter 290/300 Energy 32/100 System Corruption 3% Temperature Cool (9) Movement Core (50) Location -9/Mines Parts ------- > --- POWER (1) -------- (None) > --- PROPULSION (2) --- (None) > --- UTILITY (2) ------ Signal Interpreter > --- WEAPON (2) ------- Hammer > --- INVENTORY (5) ---- Rocket Launcher Mining Laser Peak State ------------ > --- POWER ------------ Light Nuclear Core > --- PROPULSION ------- Aluminum Leg Aluminum Leg > --- UTILITY ---------- Signal Interpreter ECM Suite > --- WEAPON ----------- Latent Energy Streamer Hammer > --- INVENTORY -------- Rocket Launcher Mining Laser Hammer [Rating: 18] Favorites ----------- Power Light Nuclear Core Engine Ion Engine Power Core Light Nuclear Core Propulsion Aluminum Leg Leg Aluminum Leg Wheel Wheel Utility Signal Interpreter Device ECM Suite Processor Signal Interpreter Weapon Hammer Energy Gun EM Pulse Gun Energy Cannon Latent Energy Streamer Ballistic Gun Light Assault Rifle Launcher Rocket Launcher Special Weapon Welding Torch Impact Weapon Hammer Build | -11 -10 -10 -10 -9 ------- Run | Scr Mat Min Exi Min Slots Evolved . | . . . . . Power . | . . . . . Propulsion . | . . . . . Utility . | . . . . . Weapon . | . . . . . Parts Attached 20 | 5 11 2 1 1 Power 2 | 1 1 . . . Engine 1 | 1 . . . . Core 1 | . 1 . . . Reactor . | . . . . . Propulsion 6 | 2 4 . . . Treads . | . . . . . Leg 4 | 2 2 . . . Wheel 2 | . 2 . . . Hover . | . . . . . Flight . | . . . . . Utility 4 | . 3 1 . . Device 3 | . 2 1 . . Storage . | . . . . . Processor 1 | . 1 . . . Hackware . | . . . . . Protection . | . . . . . Artifact . | . . . . . Weapon 8 | 2 3 1 1 1 Energy Gun 1 | 1 . . . . Energy Cannon 1 | . . . 1 . Ballistic Gun 1 | 1 . . . . Ballistic Cannon . | . . . . . Launcher 1 | . . 1 . . Special Weapon 1 | . 1 . . . Impact Weapon 3 | . 2 . . 1 Slashing Weapon . | . . . . . Piercing Weapon . | . . . . . Special Melee Weapon . | . . . . . Unidentified Prototypes 1 | . . . 1 . Parts Lost 6 | . . . . 6 Power 1 | . . . . 1 Propulsion 2 | . . . . 2 Utility 1 | . . . . 1 Weapon 2 | . . . . 2 Highest Loss Streak 6 | . . . . 6 To Critical Strikes . | . . . . . Average Slot Usage (%) 97 | . 93 100 100 79 Engine 2 | . 10 . . . Core 11 | . 3 14 14 11 Leg 25 | . 16 28 28 16 Wheel 2 | . 11 . . . Device 13 | . 12 14 14 11 Processor 13 | . 10 14 14 14 Energy Cannon 1 | . . . 2 11 Launcher 7 | . . 3 11 . Impact Weapon 17 | . 22 24 14 14 Naked Turns . | . . . . . Heaviest Build 19 | 8 11 13 19 19 Greatest Support 20 | 20 20 20 20 20 Greatest Overweight (x) . | . . . . . Average Overweight (x) . | . . . . . Largest Inventory Capacity 5 | 5 5 5 5 5 Average Capacity 5 | 5 5 5 5 5 Most Carried 3 | 1 3 3 3 3 Average Carried 1 | . . 1 2 2 Final Capacity 5 | 5 5 5 5 5 Final Carried 3 | 1 1 2 3 2 Class Distribution -------------------- 100% | Mutant Dominant Class ---------------- Mutant | -10/Materials Mutant | -10/Mines Mutant | -10/Exiles Mutant | -9/Mines Resources | -11 -10 -10 -10 -9 ----------- Run | Scr Mat Min Exi Min Matter Collected 375 | 154 110 74 . 37 Remotely . | . . . . . Salvage Created 234 | . 110 . . 124 Parts 15 | . 8 . . 7 Haulers Intercepted . | . . . . . Recyclers Shooed . | . . . . . Parts Field Recycled . | . . . . . Retrieved Matter . | . . . . . Parts Self-Destructed . | . . . . . Prevented . | . . . . . Kills | -11 -10 -10 -10 -9 ------- Run | Scr Mat Min Exi Min Combat Hostiles Destroyed 5 | . 2 . . 3 Melee 2 | . 2 . . . AOE 2 | . . . . 2 Classes Destroyed 3 | . 2 . . 1 Watcher 1 | . 1 . . . Grunt 4 | . 2 . . 2 Duelist 1 | . . . . 1 Best Kill Streak 3 | . 2 . . 3 Combat Bots Only 3 | . 2 . . 3 Max Kills in Single Turn 2 | . 1 . . 2 Gunslinging . | . . . . . Exploded 2 | . . . . 2 Melee 1 | . 1 . . . Uniques/NPCs Destroyed . | . . . . . Combat | -11 -10 -10 -10 -9 -------- Run | Scr Mat Min Exi Min Damage Taken 864 | . 116 . . 748 Core 251 | . 12 . . 239 Absorbed by Shields . | . . . . . Core Remaining (%) 100 | 100 . . . . Volleys Fired 2 | . . . . 2 Largest 1 | . . . . 1 Hottest 60 | . . . . 60 Shots Fired 2 | . . . . 2 Gun . | . . . . . Cannon 2 | . . . . 2 Launcher . | . . . . . Special . | . . . . . Kinetic . | . . . . . Thermal . | . . . . . Explosive . | . . . . . Electromagnetic 2 | . . . . 2 Robot Hit Streak 1 | . . . . 1 Robot Miss Streak 1 | . . . . 1 Penetration Max . | . . . . . Secondary Targets . | . . . . . Shots Hit Robots 14 | . 6 . . 8 Core Hits 5 | . 2 . . 3 Critical Kills 2 | . 2 . . . Critical Parts Destroyed 2 | . . . . 2 Critical Strikes 5 | . 2 . . 3 Smash 5 | . 2 . . 3 Melee Attacks 19 | . 10 . . 9 Impact 19 | . 10 . . 9 Slashing . | . . . . . Piercing . | . . . . . Sneak Attacks . | . . . . . Combat Hostiles . | . . . . . Follow-up Attacks 2 | . 2 . . . Damage Inflicted 384 | . 120 . . 264 Guns . | . . . . . Cannons 8 | . . . . 8 Explosions 97 | . . . . 97 Melee 279 | . 120 . . 159 Ramming . | . . . . . Kinetic . | . . . . . Thermal . | . . . . . Explosive . | . . . . . Electromagnetic 105 | . . . . 105 Impact 279 | . 120 . . 159 Slashing . | . . . . . Piercing . | . . . . . Highest Corruption 3 | . . . . 3 Average Corruption 1 | . . . . 1 Corruption Purged . | . . . . . Corruption Blocked . | . . . . . Overload Shots . | . . . . . Overflow Damage 27 | . 1 . . 26 Projectiles . | . . . . . Explosions . | . . . . . Melee 27 | . 1 . . 26 Knockbacks 1 | . 1 . . . Impact 1 | . 1 . . . Kinetic . | . . . . . Secondary . | . . . . . Self-Inflicted Damage 24 | . . . . 24 Shots 1 | . . . . 1 Rammed . | . . . . . Targets Rammed . | . . . . . Kicked . | . . . . . Crushed . | . . . . . Highest Temperature 39 | . 16 . . 39 Average Temperature 18 | . 16 . . 19 Received Heat Transfer 348 | . 87 . . 261 Siege Activations . | . . . . . Robots Corrupted . | . . . . . Combat Hostiles . | . . . . . Parts Fried 4 | . 2 . . 2 Impact Corruptions 3 | . 1 . . 2 Robots Melted . | . . . . . Combat Hostiles . | . . . . . Parts Melted . | . . . . . Heat Transferred . | . . . . . Parts Sabotaged . | . . . . . Parts Stolen . | . . . . . Parts Stripped . | . . . . . Power Chain Reactions . | . . . . . Missiles Intercepted . | . . . . . Latent Energy Used 144 | . . . . 144 LE Corruption 3 | . . . . 3 Alert | -11 -10 -10 -10 -9 ------- Run | Scr Mat Min Exi Min Peak Influence 70 | . 70 27 . 43 Initial 27 | . . 27 . . Average 19 | . 21 27 . 6 Maximum Alert Level . | . . . . . Low Security (%) 100 | 100 100 100 . 100 Level 1 . | . . . . . Level 2 . | . . . . . Level 3 . | . . . . . Level 4 . | . . . . . Level 5 . | . . . . . High Security . | . . . . . Max Security . | . . . . . Squads Dispatched . | . . . . . Investigation . | . . . . . Extermination . | . . . . . Reinforcement . | . . . . . Assault . | . . . . . Garrison . | . . . . . Intercept . | . . . . . Searches Triggered . | . . . . . Construction Impeded . | . . . . . Haulers Reinforced . | . . . . . Active Scanning Responses . | . . . . . Cargo Convoy Interrupts . | . . . . . Stealth | -11 -10 -10 -10 -9 --------- Run | Scr Mat Min Exi Min Distress Signals . | . . . . . Communications Jammed . | . . . . . Distress Signals . | . . . . . Times Spotted 12 | . 6 . . 6 Peak Tracking Total 6 | . 2 . . 6 Tactical Retreats . | . . . . . Traps | -11 -10 -10 -10 -9 ------- Run | Scr Mat Min Exi Min Traps Triggered . | . . . . . Indirectly . | . . . . . Trap Hack Attempts . | . . . . . Triggered . | . . . . . Disarmed . | . . . . . Reprogrammed . | . . . . . Reused . | . . . . . Traps Extracted . | . . . . . Installed . | . . . . . Triggered . | . . . . . Machines | -11 -10 -10 -10 -9 ---------- Run | Scr Mat Min Exi Min Machines Disabled . | . . . . . Max in Single Turn . | . . . . . Machines Sabotaged . | . . . . . Garrisons Compromised . | . . . . . Overloaded Fab Kills . | . . . . . Hacking | -11 -10 -10 -10 -9 --------- Run | Scr Mat Min Exi Min Machines Accessed 4 | . 1 . 3 . Terminals 1 | . 1 . . . Fabricators . | . . . . . Repair Stations . | . . . . . Recycling Units . | . . . . . Scanalyzers . | . . . . . Garrison Access . | . . . . . Total Hacks 37 | . 4 . 33 . Successful 35 | . 2 . 33 . Failed 2 | . 2 . . . Catastrophic . | . . . . . Database Lockouts . | . . . . . Manual 3 | . . . 3 . Terminals 4 | . 4 . . . Fabricators . | . . . . . Repair Stations . | . . . . . Recycling Units . | . . . . . Scanalyzers . | . . . . . Garrison Access . | . . . . . Terminal Hacks 35 | . 2 . 33 . Record 33 | . . . 33 . Unreport Threat 1 | . 1 . . . Zone Layout 1 | . 1 . . . Fabricator Hacks . | . . . . . Repair Station Hacks . | . . . . . Recycling Unit Hacks . | . . . . . Scanalyzer . | . . . . . Garrison Access Hacks . | . . . . . Unauthorized Hacks . | . . . . . Terminals . | . . . . . Fabricators . | . . . . . Repair Stations . | . . . . . Recycling Units . | . . . . . Scanalyzers . | . . . . . Garrison Access . | . . . . . Data Cores Recovered . | . . . . . Used . | . . . . . Hacking Detections 1 | . 1 . . . Full Trace Events . | . . . . . Feedback Events . | . . . . . Feedback Blocked . | . . . . . Robot Schematics Acquired . | . . . . . Robots Built . | . . . . . Authchips . | . . . . . Time . | . . . . . Total Robot Build Rating . | . . . . . Part Schematics Acquired . | . . . . . Parts Built . | . . . . . Authchips . | . . . . . Time . | . . . . . Total Part Build Rating . | . . . . . Parts Repaired . | . . . . . Time . | . . . . . Parts Recycled . | . . . . . Recycled Matter . | . . . . . Retrieved Matter . | . . . . . Retrieved Components . | . . . . . Parts Scanalyzed . | . . . . . Part Schematics Acquired . | . . . . . Parts Damaged . | . . . . . Bothacking | -11 -10 -10 -10 -9 ------------ Run | Scr Mat Min Exi Min Used RIF Installer . | . . . . . Robots Hacked . | . . . . . Non-combat . | . . . . . Combat . | . . . . . Robot Hacks Applied . | . . . . . Relay Couplers Released . | . . . . . Fabnet Peak Effective % . | . . . . . Robots Rewired . | . . . . . Allies Hacked . | . . . . . Hacks Repelled . | . . . . . Allies | -11 -10 -10 -10 -9 -------- Run | Scr Mat Min Exi Min Total Allies . | . . . . . Largest Group . | . . . . . Highest-Rated Group . | . . . . . Highest-Rated Ally . | . . . . . Total Orders . | . . . . . Ally Attacks . | . . . . . Total Damage . | . . . . . Kills . | . . . . . Allies Corrupted . | . . . . . Allies Melted . | . . . . . Intel | -11 -10 -10 -10 -9 ------- Run | Scr Mat Min Exi Min Robot Analysis Total . | . . . . . Derelict Logs Recovered 1 | . . 1 . . Drone Launches . | . . . . . Drone Recoveries . | . . . . . Exploration | -11 -10 -10 -10 -9 ------------- Run | Scr Mat Min Exi Min Turns Passed 1264 | 46 253 188 723 54 Spaces Moved 1002 | 33 196 151 601 21 Core 2 | 2 . . . . Treads . | . . . . . Legs 906 | 31 102 151 601 21 Wheels 94 | . 94 . . . Hover . | . . . . . Flight . | . . . . . Fastest Speed 50 | 50 80 120 120 120 Average Speed 116 | 115 100 120 120 120 Slowest Speed 120 | 120 120 120 120 120 Overloaded Moves . | . . . . . Propulsion Burnouts . | . . . . . Robots Hopped . | . . . . . Cave-ins Triggered . | . . . . . Exploration Rate (%) 33 | 3 39 44 73 8 Regions Visited 4 Branch Regions 3 Pre-discovered Areas 1 | . . . 1 . Known Exits Taken 3 | . 1 1 1 . Unknown Exits Taken 1 | 1 . . . . Scrap Searched 2 | . . 2 . . Spaces Dug . | . . . . . Terrain Destroyed 1 | . . . . 1 Melee . | . . . . . Projectile . | . . . . . AOE 1 | . . . . 1 Terrain Rammed . | . . . . . Walls Destroyed . | . . . . . Machines Disabled . | . . . . . Actions | -11 -10 -10 -10 -9 --------- Run | Scr Mat Min Exi Min Total 1070 | 38 239 158 602 33 Wait 9 | . 7 2 . . Move 998 | 32 195 150 600 21 Hop . | . . . . . Pick Up 10 | 1 6 2 1 . Fast Attach 12 | 5 7 . . . Attach 2 | . . 1 . 1 Detach 3 | . 2 1 . . Swap 6 | . 4 1 1 . Drop 12 | . 11 1 . . Fire 2 | . . . . 2 Melee 16 | . 7 . . 9 Ram . | . . . . . Kick . | . . . . . Crush . | . . . . . Escape Stasis . | . . . . . Rewire . | . . . . . Trap . | . . . . . Miscellaneous . | . . . . . Route ------- -11/Scrapyard -10/Materials (discovered 2 exits: *Mat / *Min) -10/Mines (discovered 2 exits: *Mat / *Exi) -10/Exiles (discovered 2 exits: *Min x2) -9/Mines History --------- Turn | Location | Event 8 | -11/Scrapyard | Discovered new exit (range 15) 47 | -11/Scrapyard | Entered Materials 70 | -10/Materials | Discovered new exit (range 14) 198 | -10/Materials | Discovered new exit (range 10) 299 | -10/Materials | Identified exit to Mines 300 | -10/Materials | Entered Mines 302 | -10/Mines | Build established: Mutant 323 | -10/Mines | Met a Derelict bent on vengeance 373 | -10/Mines | Learned 2 Materials zone layouts 429 | -10/Mines | Discovered new exit (range 13) 435 | -10/Mines | Received a Rocket Launcher from a helpful Derelict 448 | -10/Mines | Identified exit to Materials 482 | -10/Mines | Deemed a non-threat by the Exiles lab entrance 482 | -10/Mines | Discovered new exit (range 5) 487 | -10/Mines | Identified exit to Exiles 488 | -10/Mines | Entered Exiles 508 | -10/Exiles | Discovered new exit (range 15) 526 | -10/Exiles | Met 8R-AWN 546 | -10/Exiles | Met EX-HEX 608 | -10/Exiles | Met EX-DEC 640 | -10/Exiles | Learned location of Zion (-7) 704 | -10/Exiles | Discovered new exit (range 14) 781 | -10/Exiles | Met EX-BIN 829 | -10/Exiles | Aligned with FarCom system 830 | -10/Exiles | Given EX-Vault access code 1085 | -10/Exiles | Opened EX-Vault 1091 | -10/Exiles | Found Prototype Energy Cannon 1092 | -10/Exiles | Identified Latent Energy Streamer 1120 | -10/Exiles | Warned to stay clear of 0b10 Research branches 1210 | -10/Exiles | Identified exit to Mines 1211 | -10/Exiles | Left Exiles lab with Latent Energy Streamer 1211 | -10/Exiles | Entered Mines 1258 | -9/Mines | Core integrity fell below 50% 1263 | -9/Mines | Core integrity fell below 20% 1265 | -9/Mines | Destroyed by G-47 Trooper with Particle Gun Last Messages --------------- 01242_ G-34 Mercenary destroyed. 01243_ Acquired 37 matter. 01245_ Aluminum Leg destroyed. 01247_ G-34 Mercenary destroyed. 01249_ L-31 Rogue suffers critical hit (Smash). 01249_ Destroyed Imp. Aluminum Leg. 01249_ L-31 Rogue system corrupted by crushing effect. 01250_ Lgt. Nuclear Core destroyed. 01252_ L-31 Rogue suffers critical hit (Smash). 01252_ Latent Energy Streamer destroyed. 01254_ ECM Suite destroyed. 01257_ R-06 Scavenger collects Sml. Laser. 01260_ Hammer destroyed. 01261_ R-06 Scavenger collects Aluminum Leg. 01264_ L-31 Rogue suffers critical hit (Smash). 01264_ Destroyed Imp. Ion Engine. 01264_ L-31 Rogue system corrupted by crushing effect. 01265_ L-31 Rogue system terminally corrupted. 01265_ Katana fried. 01265_ Melee Analysis Suite fried. Map ----- +----------------------------------------------------+ | ?????????????????????????????????????????????????? | | ?????????????????????????????????????????????????? | | ?????????????????????????????????????????????????? | | ?????????????????????????????????????????????????? | | ?????????????????????????????????????????????????? | | ?????????????????????????????????????????????????? | | ?????????????????????????????????????????????????? | | ?????????????????????????????????????????????????? | | ?????????????????????????????????????????????????? | | ?????????????????????????????????????????????????? | | ?????????????????????????????????????????????????? | | ??????????????????????????? ?????????????????????? | | ??????????????????????????? ?????????????????????? | | ??????????????????????????# ##???????????????????? | | ?????????????????????????? ????????????????????? | | ?????????????????????????? ????????????????????? | | ?????????????????????????? ????????????????????? | | ?????????????????????????? ????????????????????? | | ?????????????????????????? ????????????????????? | | ??????????????????????????# #????????????????????? | | ??????????????????####????# #????????????????????? | | ?????????????????## ###??# #????????????????????? | | ?????????????????# #### #????????????????????? | | ?????????????????# g ####?????????????????? | | ?????????????????# r ##????????????????? | | ?????????????????# %@ #????????????????? | | ?????????????????# =%= ! #????????????????? | | ?????????????????#*%=! g #???????????????? | | ?????????????????# *[###### #??????????????? | | ?????????????????# #?????## #??????????????? | | ?????????????????# #???????## #?????????????? | | ???????????????? ?????????# #?????????????? | | ???????????????# ?????????? #?????????????? | | ???????????????# """ ?????????? ##?????????????? | | ???????????????# """ ??????????? #??????????????? | | ???????????????# """ ?????????? #??????????????? | | ???????????????# ???????????#??????????????? | | ???????????????#########?????????????????????????? | | ?????????????????????????????????????????????????? | | ?????????????????????????????????????????????????? | | ?????????????????????????????????????????????????? | | | | | | | | | | | | | | | | | | | +----------------------------------------------------+ Best States ------------- Heat Dissipation 47 Energy Generation 14 Energy Capacity 250 Matter Stores 300 Matter Capacity 300 Sight Range 16 Terrain Scan Density 10 ECM Strength 1 Evasion (%) 55 Item Schematics ----------------- None Robot Schematics ------------------ None Fabricated ------------ Nothing Alien Tech Used ----------------- None Achievements -------------- None Challenges ------------ None Game ------ Seed MetafiberCargoRecalibrator Manual? 0 Play Time 00:26:54 Cumulative 8.7 hours Start 2022.04.07 @ 09:44:22 End 2022.04.07 @ 10:10:49 Sessions 1 Manual Loads 0 Difficulty Rogue Special Mode None Game No. 17 Rogue 17 Adventurer 0 Explorer 0 Win Type - Total 0 Types 0/0/0/0/0/0/0/0/0 Lore% 13 Gallery% 17 Achievement% 15 Wizard Run 0 Options --------- ASCII 0 Keyboard 0 Movement Mouse Keybinds 0 Fullscreen 2 Font 18/SmallcapsGlow Map View 76x50 Tactical HUD 1 Map Filters NONE Filters NONE Steam 1 RUN: 3f41f891-c37d-43c0-9bcb-4d49a9c14997